fUST/lending_fUST_20251216
["ID","MTS","AMOUNT","RATE_DAILY","PERIOD"]
[398553119,1765827660444,-500.0,0.00037753,120]
[398553120,1765827660470,-500.0,0.00037753,120]
[398553121,1765827660494,-500.0,0.00037753,120]
[398553122,1765827660521,-500.0,0.00037753,120]
[398553123,1765827660546,-500.0,0.00037753,120]
[398553124,1765827660572,-500.0,0.00037753,120]
[398553125,1765827660598,-500.0,0.00037753,120]
[398553126,1765827660626,-500.0,0.00037753,120]
[398553127,1765827660653,-500.0,0.00037753,120]
[398553128,1765827660678,-500.0,0.00037753,120]
[398553129,1765827660704,-500.0,0.00037753,120]
[398553130,1765827660730,-500.0,0.00037753,120]
[398553131,1765827660756,-338.35221731,0.00037753,120]
[398553132,1765827660782,-384.69606932,0.00037753,120]
[398553134,1765827660809,-559.16,0.00037753,120]
[398553136,1765827660837,-559.16,0.00037753,120]
[398553138,1765827660863,-559.16,0.00037753,120]
[398553140,1765827660889,-559.16,0.00037753,120]
[398553141,1765827660915,-559.16,0.00037753,120]
[398553143,1765827660940,-500.0,0.00037753,120]
[398553145,1765827660966,-559.16,0.00037753,120]
[398553147,1765827660991,-559.16,0.00037753,120]
[398553149,1765827661017,-500.0,0.00037753,120]
[398553151,1765827661043,-559.16,0.00037753,120]
[398553153,1765827661070,-559.16,0.00037753,120]
[398553155,1765827661101,-500.0,0.00037753,120]
[398553157,1765827661128,-559.16,0.00037753,120]
[398553159,1765827661155,-500.0,0.00037753,120]
[398553161,1765827661182,-559.16,0.00037753,120]
[398553163,1765827661208,-559.16,0.00037753,120]
[398553165,1765827661234,-559.16,0.00037753,120]
[398553167,1765827661261,-559.16,0.00037753,120]
[398553169,1765827661288,-500.0,0.00037753,120]
[398553171,1765827661317,-559.16,0.00037753,120]
[398553173,1765827661344,-500.0,0.00037753,120]
[398553175,1765827661371,-559.16,0.00037753,120]
[398553177,1765827661396,-500.0,0.00037753,120]
[398553179,1765827661422,-559.16,0.00037753,120]
[398553181,1765827661447,-500.0,0.00037753,120]
[398553182,1765827661472,-559.16,0.00037753,120]
[398553184,1765827661498,-720.38,0.00037753,120]
[398553186,1765827661522,-500.0,0.00037753,120]
[398553188,1765827661547,-720.38,0.00037753,120]
[398553190,1765827661573,-559.16,0.00037753,120]
[398553192,1765827661601,-500.0,0.00037753,120]
[398553194,1765827661627,-720.38,0.00037753,120]
[398553196,1765827661653,-559.16,0.00037753,120]
[398553198,1765827661680,-500.0,0.00037753,120]
[398553200,1765827661706,-720.38,0.00037753,120]
[398553202,1765827661731,-559.16,0.00037753,120]
[398553204,1765827661757,-262.62698306,0.00037753,120]
[398553206,1765827661785,-720.38,0.00037753,120]
[398553208,1765827661811,-559.16,0.00037753,120]
[398553210,1765827661838,-720.38,0.00037753,120]
[398553212,1765827661864,-559.16,0.00037753,120]
[398553213,1765827661891,-720.38,0.00037753,120]
[398553215,1765827661916,-559.23870042,0.00037753,120]
[398553217,1765827661941,-720.38,0.00037753,120]
[398553219,1765827661967,-720.38,0.00037753,120]
[398553221,1765827661993,-720.38,0.00037753,120]
[398553223,1765827662019,-720.38,0.00037753,120]
[398553225,1765827662046,-500.0,0.00037753,30]
[398553227,1765827662073,-720.38,0.00037753,120]
[398553229,1765827662103,-500.0,0.00037753,30]
[398553230,1765827662128,-720.38,0.00037753,120]
[398553232,1765827662157,-500.0,0.00037753,30]
[398553234,1765827662184,-720.38,0.00037753,120]
[398553236,1765827662210,-500.0,0.00037753,30]
[398553238,1765827662237,-720.38,0.00037753,120]
[398553240,1765827662262,-500.0,0.00037753,30]
[398553242,1765827662290,-720.38,0.00037753,120]
[398553244,1765827662319,-500.0,0.00037753,30]
[398553246,1765827662350,-720.38,0.00037753,120]
[398553248,1765827662378,-500.0,0.00037753,30]
[398553250,1765827662408,-720.38,0.00037753,120]
[398553252,1765827662435,-720.38,0.00037753,120]
[398553254,1765827662463,-720.38,0.00037753,120]
[398553256,1765827662491,-500.0,0.00037753,120]
[398553257,1765827662518,-720.38,0.00037753,120]
[398553259,1765827662544,-3010.81177046,0.00037753,30]
[398553261,1765827662570,-500.0,0.00037753,120]
[398553263,1765827662598,-720.38,0.00037753,120]
[398553265,1765827662624,-500.0,0.00037753,120]
[398553267,1765827662650,-500.0,0.00037753,120]
[398553269,1765827662675,-720.38,0.00037753,120]
[398553271,1765827662702,-243.82230228,0.00037753,120]
[398553273,1765827662729,-500.0,0.00037753,120]
[398553275,1765827662755,-720.57308668,0.00037753,120]
[398553277,1765827662783,-500.0,0.00037753,120]
[398553279,1765827662811,-500.0,0.00037753,120]
[398553281,1765827662837,-500.0,0.00037753,120]
[398553283,1765827662866,-500.0,0.00037753,120]
[398553285,1765827662895,-500.0,0.00037753,120]
[398553287,1765827662923,-500.0,0.00037753,120]
[398553295,1765827663124,-500.0,0.00037753,30]
[398553297,1765827663153,-500.0,0.00037753,120]
[398553299,1765827663180,-232.34189944,0.00037753,120]
[398553301,1765827663208,-500.0,0.00037753,120]
[398553303,1765827663235,-500.0,0.00037753,30]
[398553305,1765827663264,-308.91454701,0.00037753,120]
[398553307,1765827663292,-500.0,0.00037753,120]
[398553309,1765827663327,-500.0,0.00037753,30]
[398553311,1765827663357,-500.0,0.00037753,120]
[398553313,1765827663386,-500.0,0.00037753,30]
[398553315,1765827663416,-452.73091395,0.00037753,120]
[398553317,1765827663446,-500.0,0.00037753,30]
[398553319,1765827663475,-500.0,0.00037753,30]
[398553321,1765827663502,-500.0,0.00037753,30]
[398553322,1765827663530,-500.0,0.00037753,30]
[398553323,1765827663559,-500.0,0.00037753,30]
[398553324,1765827663588,-500.0,0.00037753,120]
[398553325,1765827663620,-500.0,0.00037753,30]
[398553326,1765827663649,-500.0,0.00037753,120]
[398553327,1765827663678,-500.0,0.00037753,30]
[398553328,1765827663706,-500.0,0.00037753,120]
[398553329,1765827663735,-1238.38,0.00037753,120]
[398553330,1765827663763,-995.77,0.00037753,120]
[398553331,1765827663790,-500.0,0.00037753,30]
[398553332,1765827663818,-500.0,0.00037753,120]
[398553333,1765827663847,-1238.38,0.00037753,120]
[398553334,1765827663876,-995.77,0.00037753,120]
[398553335,1765827663906,-500.0,0.00037753,30]
[398553336,1765827663934,-500.0,0.00037753,120]
[398553337,1765827663963,-1238.38,0.00037753,120]
[398553338,1765827663992,-995.77,0.00037753,120]
[398553339,1765827664020,-500.0,0.00037753,30]
[398553340,1765827664047,-187.50888779,0.00037753,120]
[398553341,1765827664075,-1238.38,0.00037753,120]
[398553343,1765827664103,-995.77,0.00037753,120]
[398553345,1765827664132,-500.0,0.00037753,30]
[398553347,1765827664160,-1238.38,0.00037753,120]
[398553349,1765827664188,-995.77,0.00037753,120]
[398553351,1765827664217,-565.78826716,0.00037753,30]
[398553353,1765827664248,-1238.38,0.00037753,120]
[398553355,1765827664278,-995.77,0.00037753,120]
[398553357,1765827664306,-1238.38,0.00037753,120]
[398553359,1765827664338,-995.77,0.00037753,120]
[398553361,1765827664367,-1238.38,0.00037753,120]
[398553363,1765827664400,-1238.38,0.00037753,120]
[398553365,1765827664433,-995.77,0.00037753,120]
[398553368,1765827664465,-500.0,0.00037753,120]
[398553370,1765827664496,-1238.38,0.00037753,120]
[398553372,1765827664528,-995.77,0.00037753,120]
[398553374,1765827664557,-500.0,0.00037753,120]
[398553376,1765827664587,-1238.38,0.00037753,120]
[398553378,1765827664618,-500.0,0.00037753,120]
[398553380,1765827664648,-995.77,0.00037753,120]
[398553382,1765827664677,-1238.38,0.00037753,120]
[398553384,1765827664707,-500.0,0.00037753,120]
[398553386,1765827664737,-1238.38,0.00037753,120]
[398553388,1765827664765,-995.77,0.00037753,120]
[398553390,1765827664795,-500.0,0.00037753,120]
[398553392,1765827664826,-1238.38,0.00037753,120]
[398553394,1765827664853,-995.77,0.00037753,120]
[398553396,1765827664882,-500.0,0.00037753,120]
[398553398,1765827664911,-500.0,0.00037753,120]
[398553401,1765827664939,-1238.38,0.00037753,120]
[398553403,1765827664966,-995.77,0.00037753,120]
[398553405,1765827664995,-500.0,0.00037753,120]
[398553407,1765827665024,-500.0,0.00037753,120]
[398553409,1765827665053,-1238.38,0.00037753,120]
[398553411,1765827665081,-995.77,0.00037753,120]
[398553413,1765827665110,-500.0,0.00037753,120]
[398553415,1765827665138,-1238.38,0.00037753,120]
[398553417,1765827665165,-500.0,0.00037753,120]
[398553419,1765827665194,-995.77,0.00037753,120]
[398553421,1765827665222,-500.0,0.00037753,120]
[398553423,1765827665250,-1238.38,0.00037753,120]
[398553425,1765827665278,-500.0,0.00037753,120]
[398553427,1765827665306,-995.77,0.00037753,120]
[398553429,1765827665337,-500.0,0.00037753,120]
[398553431,1765827665365,-1238.38,0.00037753,120]
[398553433,1765827665393,-500.0,0.00037753,120]
[398553435,1765827665420,-995.77,0.00037753,120]
[398553438,1765827665448,-500.0,0.00037753,120]
[398553440,1765827665475,-1238.38,0.00037753,120]
[398553442,1765827665503,-995.77,0.00037753,120]
[398553444,1765827665530,-502.49756817,0.00037753,120]
[398553446,1765827665557,-1238.38,0.00037753,120]
[398553448,1765827665584,-500.0,0.00037753,120]
[398553450,1765827665611,-995.77,0.00037753,120]
[398553452,1765827665639,-500.0,0.00037753,120]
[398553454,1765827665666,-995.77,0.00037753,120]
[398553456,1765827665694,-1238.38,0.00037753,120]
[398553458,1765827665723,-500.0,0.00037753,120]
[398553460,1765827665750,-995.77,0.00037753,120]
[398553462,1765827665776,-1238.38,0.00037753,120]
[398553464,1765827665803,-500.0,0.00037753,120]
[398553466,1765827665830,-995.77,0.00037753,120]
[398553474,1765827666022,-1238.54481066,0.00037753,120]
[398553476,1765827666062,-500.0,0.00037753,120]
[398553478,1765827666094,-995.77,0.00037753,120]
[398553480,1765827666122,-500.0,0.00037753,120]
[398553482,1765827666152,-995.87910606,0.00037753,120]
[398553484,1765827666184,-554.37426576,0.00037753,120]
[398553486,1765827666217,-500.0,0.00037753,120]
[398553488,1765827666248,-1258.48,0.00037753,30]
[398553490,1765827666276,-500.0,0.00037753,120]
[398553492,1765827666305,-1258.48,0.00037753,30]
[398553495,1765827666341,-500.0,0.00037753,120]
[398553496,1765827666371,-1258.48,0.00037753,30]
[398553499,1765827666400,-500.0,0.00037753,120]
[398553501,1765827666428,-1258.48,0.00037753,30]
[398553503,1765827666456,-502.96284362,0.00037753,120]
[398553505,1765827666482,-1258.48,0.00037753,30]
[398553507,1765827666509,-1258.48,0.00037753,30]
[398553509,1765827666535,-1258.48,0.00037753,30]
[398553511,1765827666562,-500.0,0.00037753,120]
[398553513,1765827666593,-1258.48,0.00037753,30]
[398553515,1765827666621,-500.0,0.00037753,120]
[398553517,1765827666649,-500.0,0.00037753,120]
[398553519,1765827666674,-1258.48,0.00037753,30]
[398553520,1765827666700,-500.0,0.00037753,120]
[398553521,1765827666726,-500.0,0.00037753,120]
[398553522,1765827666753,-500.0,0.00037753,120]
[398553523,1765827666781,-500.0,0.00037753,120]
[398553524,1765827666808,-500.0,0.00037753,120]
[398553525,1765827666834,-1258.48,0.00037753,30]
[398553526,1765827666861,-500.0,0.00037753,120]
[398553527,1765827666889,-500.0,0.00037753,120]
[398553528,1765827666917,-1258.48,0.00037753,30]
[398553529,1765827666943,-500.0,0.00037753,120]
[398553530,1765827666968,-500.0,0.00037753,120]
[398553531,1765827666994,-1258.48,0.00037753,30]
[398553532,1765827667020,-500.0,0.00037753,120]
[398553533,1765827667046,-500.0,0.00037753,120]
[398553534,1765827667073,-1258.48,0.00037753,30]
[398553535,1765827667100,-500.0,0.00037753,120]
[398553536,1765827667127,-500.0,0.00037753,120]
[398553537,1765827667153,-1258.48,0.00037753,30]
[398553538,1765827667179,-500.0,0.00037753,120]
[398553540,1765827667206,-500.0,0.00037753,120]
[398553542,1765827667232,-1258.48,0.00037753,30]
[398553544,1765827667259,-500.0,0.00037753,120]
[398553546,1765827667285,-500.0,0.00037753,120]
[398553548,1765827667310,-1258.48,0.00037753,30]
[398553550,1765827667343,-500.0,0.00037753,120]
[398553552,1765827667370,-500.0,0.00037753,120]
[398553554,1765827667397,-1258.48,0.00037753,30]
[398553556,1765827667425,-500.0,0.00037753,120]
[398553558,1765827667452,-500.0,0.00037753,120]
[398553560,1765827667481,-1258.48,0.00037753,30]
[398553562,1765827667507,-500.0,0.00037753,120]
[398553564,1765827667536,-500.0,0.00037753,120]
[398553566,1765827667564,-1258.48,0.00037753,30]
[398553568,1765827667591,-500.0,0.00037753,120]
[398553570,1765827667617,-1258.48,0.00037753,30]
[398553572,1765827667644,-500.0,0.00037753,120]
[398553574,1765827667670,-1258.48,0.00037753,30]
[398553576,1765827667697,-1258.48,0.00037753,30]
[398553578,1765827667725,-511.74,0.00037753,120]
[398553580,1765827667751,-1258.48,0.00037753,30]
[398553582,1765827667778,-500.0,0.00037753,120]
[398553584,1765827667805,-1258.70435801,0.00037753,30]
[398553586,1765827667834,-500.0,0.00037753,120]
[398553588,1765827667861,-500.0,0.00037753,120]
[398553590,1765827667888,-508.2704858,0.00037753,120]
[398553592,1765827667916,-500.0,0.00037753,120]
[398553594,1765827667942,-502.09273033,0.00037753,120]
[398553597,1765827667970,-500.0,0.00037753,120]
[398553598,1765827667997,-500.0,0.00037753,120]
[398553601,1765827668025,-500.0,0.00037753,120]
[398553603,1765827668053,-500.0,0.00037753,120]
[398553605,1765827668082,-519.02190449,0.00037753,120]
[398553607,1765827668110,-500.0,0.00037753,120]
[398553609,1765827668137,-500.0,0.00037753,120]
[398553611,1765827668165,-8.47303084,0.00037753,120]
[398554233,1765827690008,150.0,9.975e-05,2]
[398554267,1765827690984,150.0,9.975e-05,2]
[398554583,1765827702697,-127.34161956,0.00014301,30]
[398554585,1765827702726,-151.17080978,0.00014438,30]
[398554587,1765827702755,-151.17080978,0.00014603,30]
[398554589,1765827702782,-151.17080978,0.0001474,30]
[398554591,1765827702811,-790.4575157,0.00015,30]
[398554594,1765827702843,-500.0,0.000165,30]
[398554596,1765827702868,-500.0,0.000165,30]
[398554598,1765827702893,-500.0,0.000165,30]
[398554599,1765827702918,-444.93447613,0.000165,30]
[398554601,1765827702943,-500.0,0.000165,30]
[398554604,1765827702973,-171.0,0.00019828,120]
[398554606,1765827702999,-172.0,0.00019828,120]
[398554607,1765827703026,-173.0,0.00020029,120]
[398554609,1765827703053,-186.5126859,0.00020306,120]
[398554611,1765827703081,-267.65286516,0.00020611,32]
[398554613,1765827703106,-333.33333333,0.00020626,32]
[398554615,1765827703135,-177.4719639,0.00020626,32]
[398554618,1765827703163,-171.0,0.00020819,120]
[398554619,1765827703189,-172.0,0.00020819,120]
[398554621,1765827703215,-173.0,0.0002103,120]
[398554623,1765827703241,-333.33333333,0.00021033,40]
[398554626,1765827703269,-267.65286516,0.00021417,48]
[398554627,1765827703294,-333.33333333,0.00021439,48]
[398554629,1765827703322,-177.4719639,0.00021439,48]
[398554631,1765827703353,-171.0,0.0002186,120]
[398554633,1765827703385,-172.0,0.0002186,120]
[398554636,1765827703440,-267.65286516,0.00022223,63]
[398554638,1765827703473,-177.4719639,0.00022252,63]
[398554639,1765827703504,-172.0,0.00022365,120]
[398554640,1765827703533,-229.0,0.00022931,120]
[398554641,1765827703561,-171.0,0.00022953,120]
[398554642,1765827703588,-172.0,0.00022953,120]
[398554643,1765827703618,-267.65286516,0.00023029,79]
[398554644,1765827703645,-177.4719639,0.00023066,79]
[398554645,1765827703671,-172.0,0.00023484,120]
[398554646,1765827703698,-267.65286516,0.00023834,94]
[398554647,1765827703724,-177.4719639,0.00023879,94]
[398554648,1765827703751,-608.86768729,0.00024,30]
[398554649,1765827703779,-156.80201803,0.00024073,30]
[398554650,1765827703807,-175.08495346,0.00024123,30]
[398554651,1765827703834,-158.24211755,0.00024123,30]
[398554652,1765827703865,-267.65286516,0.0002464,110]
[398554659,1765827704095,-177.4719639,0.00024692,110]
[398554661,1765827704127,-319.86630214,0.00025,120]
[398554663,1765827704156,-5000.0,0.00025,30]
[398554665,1765827704184,-198.08824625,0.00025,30]
[398554667,1765827704211,-160.0,0.00025,30]
[398554669,1765827704240,-150.0,0.00025,30]
[398554671,1765827704267,-150.0,0.00025,30]
[398554673,1765827704293,-150.0,0.00025,30]
[398554675,1765827704321,-150.0,0.00025,30]
[398554677,1765827704351,-170.25,0.00025,30]
[398554679,1765827704383,-500.0,0.00027,120]
[398554681,1765827704410,-200.0,0.00027088,120]
[398554683,1765827704439,-1000.0,0.0002738,30]
[398554685,1765827704466,-1000.0,0.0002738,30]
[398554687,1765827704493,-1000.0,0.0002738,30]
[398554689,1765827704520,-715.0,0.0002738,30]
[398554691,1765827704552,-375.2726657,0.00027671,30]
[398554693,1765827704581,-375.2726657,0.00027671,30]
[398554695,1765827704613,-375.2726657,0.00027671,30]
[398554697,1765827704642,-375.2726657,0.00027671,30]
[398554699,1765827704671,-375.2726657,0.00027671,30]
[398554701,1765827704699,-375.2726657,0.00027671,30]
[398554703,1765827704727,-601.0612817,0.00027671,30]
[398554705,1765827704754,-5000.0,0.00028,60]
[398554707,1765827704781,-200.0,0.00028,120]
[398554709,1765827704808,-200.0,0.00028218,120]
[398554711,1765827704834,-200.0,0.00028224,120]
[398554713,1765827704860,-1003.21154134,0.0002849,120]
[398554715,1765827704890,-793.90059342,0.0002876,120]
[398554716,1765827704917,-186.498877,0.00028767,60]
[398554718,1765827704943,-1600.0,0.00029,120]
[398554720,1765827704971,-200.0,0.00029113,120]
[398554722,1765827704999,-159.0,0.00029397,34]
[398554725,1765827705030,-153.3392312,0.00029589,30]
[398554727,1765827705065,-593375.36237553,0.0003,30]
[398554729,1765827705092,-1774.22637023,0.0003,120]
[398554730,1765827705119,-14909.54827188,0.0003,120]
[398554732,1765827705145,-16019.05533596,0.0003,30]
[398554734,1765827705172,-212.33479376,0.0003,120]
[398554736,1765827705200,-200.0,0.0003,120]
[398554738,1765827705226,-191.0872603,0.0003,120]
[398554740,1765827705252,-1000.0,0.0003,90]
[398554742,1765827705279,-198.08824625,0.0003,120]
[398554744,1765827705304,-200.0,0.0003,120]
[398554746,1765827705332,-341.57972206,0.0003,30]
[398554748,1765827705358,-1000.91,0.0003,30]
[398554750,1765827705388,-154.05,0.0003,60]
[398554752,1765827705417,-1000.91,0.0003006,30]
[398554754,1765827705446,-1000.0,0.00030118,30]
[398554756,1765827705474,-1000.0,0.00030118,30]
[398554758,1765827705501,-1000.0,0.00030118,30]
[398554760,1765827705527,-232.98134576,0.00030136,120]
[398554762,1765827705553,-687.467228,0.00030137,120]
[398554765,1765827705600,-200.0,0.00030272,120]
[398554768,1765827705645,-306.0,0.00030411,30]
[398554770,1765827705690,-153.0,0.00030411,30]
[398554773,1765827705734,-153.0,0.00030411,30]
[398554775,1765827705785,-153.0,0.00030411,30]
[398554778,1765827705831,-218.348943,0.00030548,30]
[398554780,1765827705875,-160.0,0.00031,120]
[398554783,1765827705919,-250.0,0.000314,120]
[398554785,1765827705957,-170.0,0.00031589,47]
[398554787,1765827705993,-200.0,0.00032,120]
[398554790,1765827706035,-3074.47726392,0.00032,120]
[398554792,1765827706073,-1008.8720975,0.00032,120]
[398554794,1765827706110,-1000.0,0.00032,120]
[398554797,1765827706146,-200.0,0.00032113,120]
[398554799,1765827706187,-8113.18,0.00032876,120]
[398554802,1765827706226,-1184.0,0.00032877,120]
[398554804,1765827706266,-72246.4008866,0.00033,30]
[398554807,1765827706302,-1334.07,0.0003315,30]
[398554809,1765827706341,-408.64950028,0.000332,117]
[398554811,1765827706380,-408.64950025,0.000332,117]
[398554814,1765827706419,-408.64950025,0.000332,117]
[398554816,1765827706457,-408.64950025,0.000332,117]
[398554818,1765827706494,-408.64950025,0.000332,117]
[398554821,1765827706538,-2000.0,0.00033425,120]
[398554823,1765827706578,-8113.18,0.00033561,120]
[398554825,1765827706618,-153.0,0.00033699,30]
[398554826,1765827706655,-200.0,0.00033936,120]
[398554827,1765827706691,-1334.07,0.00033972,31]
[398554828,1765827706726,-2000.0,0.00033973,120]
[398554829,1765827706762,-200.0,0.00034,120]
[398554830,1765827706797,-1000.0,0.00034,120]
[398554831,1765827706832,-1000.0,0.00034,120]
[398554832,1765827706869,-821.02165989,0.00034112,120]
[398554833,1765827706905,-8113.18,0.00034246,120]
[398554834,1765827706941,-200.0,0.0003443,38]
[398554835,1765827706979,-2000.0,0.00034521,120]
[398554836,1765827707019,-200.0,0.00034573,120]
[398554839,1765827707054,-1334.07,0.00034794,32]
[398554841,1765827707083,-1444.0,0.00034849,120]
[398554843,1765827707109,-155.0,0.00034877,73]
[398554845,1765827707136,-8113.18,0.00034931,120]
[398554847,1765827707162,-162.0,0.00035,120]
[398554849,1765827707187,-150.0,0.00035,69]
[398554850,1765827707214,-1000.0,0.00035,120]
[398554852,1765827707243,-2000.0,0.00035068,120]
[398554854,1765827707269,-687.467228,0.0003516,120]
[398554856,1765827707298,-440.12,0.00035326,60]
[398554858,1765827707329,-192.6186232,0.00035342,30]
[398554861,1765827707358,-192.6186232,0.00035342,30]
[398554862,1765827707387,-192.6186232,0.00035342,30]
[398554864,1765827707415,-192.6186232,0.00035342,30]
[398554880,1765827707816,-192.6186232,0.00035342,30]
[398554884,1765827707881,-192.6186232,0.00035342,30]
[398554886,1765827707907,-192.6186232,0.00035342,30]
[398554888,1765827707933,-192.6186232,0.00035342,30]
[398554890,1765827707960,-192.6186232,0.00035342,30]
[398554892,1765827707985,-192.6186232,0.00035342,30]
[398554894,1765827708012,-192.6186232,0.00035342,30]
[398554896,1765827708037,-192.6186232,0.00035342,30]
[398554898,1765827708062,-192.6186232,0.00035342,30]
[398554900,1765827708087,-192.6186232,0.00035342,30]
[398554902,1765827708112,-192.6186232,0.00035342,30]
[398554904,1765827708138,-192.6186232,0.00035342,30]
[398554906,1765827708164,-192.6186232,0.00035342,30]
[398554908,1765827708189,-192.6186232,0.00035342,30]
[398554910,1765827708214,-192.6186232,0.00035342,30]
[398554912,1765827708240,-192.6186232,0.00035342,30]
[398554913,1765827708266,-192.6186232,0.00035342,30]
[398554915,1765827708292,-192.6186232,0.00035342,30]
[398554917,1765827708318,-192.6186232,0.00035342,30]
[398554919,1765827708345,-192.6186232,0.00035342,30]
[398554921,1765827708372,-192.6186232,0.00035342,30]
[398554923,1765827708399,-192.6186232,0.00035342,30]
[398554925,1765827708428,-440.12,0.00035426,60]
[398554927,1765827708456,-440.12,0.00035526,60]
[398554929,1765827708485,-162.0,0.000356,120]
[398554931,1765827708513,-2000.0,0.00035616,120]
[398554933,1765827708539,-1334.07,0.00035616,33]
[398554935,1765827708567,-8113.18,0.00035616,120]
[398554938,1765827708594,-440.12,0.00035626,60]
[398554940,1765827708624,-440.12,0.00035726,60]
[398554942,1765827708652,-440.12,0.00035826,60]
[398554943,1765827708678,-200.0,0.000359,120]
[398554945,1765827708705,-200.60639,0.000359,120]
[398554947,1765827708732,-440.12,0.00035926,60]
[398554949,1765827708758,-300.0,0.00036,120]
[398554951,1765827708786,-200.0,0.00036,120]
[398554953,1765827708812,-500.0,0.00036,120]
[398554955,1765827708838,-1918.0,0.00036,120]
[398554957,1765827708864,-1000.0,0.00036,120]
[398554959,1765827708892,-440.12,0.00036026,60]
[398554961,1765827708919,-867.78871647,0.00036112,120]
[398554963,1765827708947,-440.12,0.00036126,60]
[398554965,1765827708973,-2000.0,0.00036164,120]
[398554967,1765827709000,-162.0,0.000362,120]
[398554969,1765827709027,-440.12,0.00036226,60]
[398554971,1765827709053,-8113.18,0.00036301,120]
[398554973,1765827709080,-397.9302561,0.00036301,30]
[398554976,1765827709109,-440.12,0.00036326,60]
[398554978,1765827709137,-440.12,0.00036426,60]
[398554980,1765827709165,-1334.07,0.00036438,34]
[398554982,1765827709193,-192.6186232,0.00036493,30]
[398554983,1765827709220,-192.6186232,0.00036493,30]
[398554986,1765827709251,-192.6186232,0.00036493,30]
[398554988,1765827709279,-440.12,0.00036526,60]
[398554990,1765827709308,-200.0,0.00036599,120]
[398554992,1765827709344,-440.12,0.00036626,60]
[398554994,1765827709377,-2000.0,0.00036712,120]
[398554996,1765827709405,-440.12,0.00036726,60]
[398554998,1765827709433,-200.0,0.0003677,45]
[398555000,1765827709460,-132448.41702635,0.00036789,60]
[398555002,1765827709485,-150.0,0.000368,120]
[398555004,1765827709510,-152.67,0.000368,120]
[398555006,1765827709537,-200.0,0.00036813,120]
[398555008,1765827709564,-440.12,0.00036826,60]
[398555009,1765827709590,-200.0,0.00036836,120]
[398555010,1765827709614,-500.0,0.00036849,120]
[398555011,1765827709640,-500.0,0.00036849,120]
[398555012,1765827709664,-500.0,0.00036849,120]
[398555013,1765827709688,-504.76031738,0.00036849,120]
[398555014,1765827709712,-162.0,0.000369,120]
[398555015,1765827709736,-253.0,0.000369,120]
[398555016,1765827709760,-2000.0,0.000369,120]
[398555017,1765827709785,-169.0,0.000369,120]
[398555018,1765827709809,-170.0,0.000369,120]
[398555019,1765827709835,-163.0,0.000369,120]
[398555020,1765827709860,-170.0,0.000369,120]
[398555021,1765827709887,-440.12,0.00036926,60]
[398555022,1765827709913,-8113.18,0.00036986,120]
[398555023,1765827709938,-1348.3,0.00036987,30]
[398555024,1765827709962,-500.0,0.00037,120]
[398555026,1765827709988,-1000.0,0.00037,120]
[398555028,1765827710014,-20954.0,0.00037,120]
[398555030,1765827710041,-440.12,0.00037026,60]
[398555032,1765827710067,-200.0,0.000371,120]
[398555034,1765827710093,-440.12,0.00037126,60]